bitfinex/quotes_ETHUSD_20251218
["timestamp","ask_amount","ask_price","bid_price","bid_amount"]
[1766024319454,2.1125,2849.8,2848.8,0.32083222]
[1766024319655,2.1125,2849.8,2848.0,8.39281707]
[1766024319656,3.97300858,2850.2,2848.9,0.32083222]
[1766024319862,0.7531,2849.7,2849.0,0.32083222]
[1766024320060,1.23168109,2850.1,2848.6,3.51046879]
[1766024320268,2.8588,2849.7,2848.7,0.32101618]
[1766024320556,0.7332,2849.6,2848.8,0.32101618]
[1766024320756,0.405504,2850.0,2848.9,0.32101618]
[1766024320958,0.7248,2849.6,2847.9,0.002]
[1766024321173,2.0842,2849.1,2847.9,0.002]
[1766024321388,2.809,2848.9,2847.9,0.002]
[1766024321551,0.405504,2849.5,2847.9,0.002]
[1766024321751,2.0842,2849.1,2847.9,0.002]
[1766024321955,6.28604679,2848.9,2846.7,0.002]
[1766024322186,2.489704,2848.5,2846.9,3.51257145]
[1766024322481,0.7248,2848.2,2847.0,0.7025258]
[1766024322709,2.0842,2847.5,2846.7,0.002]
[1766024322850,2.0842,2848.1,2846.7,3.51479751]
[1766024323051,0.405504,2848.8,2846.9,3.51455073]
[1766024323285,2.0842,2848.4,2846.9,0.002]
[1766024323454,2.809,2847.9,2846.9,0.002]
[1766024323860,2.809,2847.9,2846.9,0.40012196]
[1766024324883,0.405504,2848.8,2846.9,0.40012196]
[1766024325056,0.7248,2848.3,2846.9,0.40012196]
[1766024325251,0.405504,2848.7,2846.9,0.40012196]
[1766024325456,0.7248,2848.2,2846.9,0.96512196]
[1766024325770,2.809,2848.0,2847.0,3.51246926]
[1766024325968,2.809,2848.0,2847.1,0.44775912]
[1766024326365,0.7248,2848.8,2847.1,0.44775912]
[1766024326674,0.7248,2847.9,2846.9,0.002]
[1766024326853,2.809,2847.5,2846.9,0.002]
[1766024327185,0.46438023,2848.0,2846.9,3.51459215]
[1766024327482,0.405504,2848.5,2846.9,3.51459215]
[1766024327656,0.7248,2848.5,2846.9,0.002]
[1766024327855,0.7248,2847.9,2846.9,0.35367451]
[1766024328076,0.7248,2847.8,2846.9,7.3787784]
[1766024328384,2.0842,2848.0,2846.9,7.3787784]
[1766024328954,2.0842,2848.2,2846.9,3.86618576]
[1766024329185,0.46438023,2849.1,2847.0,0.565]
[1766024329480,0.7248,2848.7,2847.1,0.79437784]
[1766024329684,0.7248,2848.3,2847.1,0.79437784]
[1766024329887,0.405504,2849.1,2847.2,3.51222253]
[1766024329888,2.809,2848.2,2847.2,3.51222253]
[1766024330086,2.809,2848.2,2847.1,7.81901921]
[1766024330456,2.809,2848.2,2847.1,4.30667332]
[1766024330661,2.809,2848.2,2847.2,0.48716733]
[1766024331374,0.7248,2848.3,2847.2,0.48716733]
[1766024331576,2.809,2848.1,2847.2,0.48716733]
[1766024331885,2.0842,2848.3,2847.2,3.99937636]
[1766024332195,2.809,2847.6,2847.0,0.002]
[1766024332362,0.405504,2848.4,2847.0,0.002]
[1766024332563,2.0842,2847.7,2847.0,0.002]
[1766024332886,2.809,2847.6,2847.0,0.002]
[1766024333071,2.0842,2847.3,2847.0,0.002]
[1766024333398,2.0842,2847.3,2846.9,0.002]
[1766024333560,2.0842,2847.5,2846.7,0.002]
[1766024333764,2.809,2847.3,2846.7,0.002]
[1766024334082,0.2809,2847.6,2846.7,0.002]
[1766024334083,0.7248,2847.4,2846.7,0.002]
[1766024334282,0.7248,2847.0,2846.2,5.13843299]
[1766024334600,0.7248,2847.1,2846.2,1.625]
[1766024334897,2.809,2847.3,2846.2,1.625]
[1766024335103,2.809,2847.3,2846.2,5.13837334]
[1766024335390,0.7248,2847.4,2846.3,3.51331896]
[1766024335564,0.405504,2847.8,2846.3,4.37850799]
[1766024335765,0.03530325,2848.1,2846.3,4.37850799]
[1766024335966,0.7248,2847.6,2846.3,4.37850799]
[1766024336165,0.7248,2847.4,2846.3,7.89184108]
[1766024336476,2.809,2847.4,2846.4,0.565]
[1766024336801,0.7248,2847.6,2846.5,0.4943508]
[1766024337096,2.0842,2847.3,2846.5,0.4943508]
[1766024337395,0.7248,2847.6,2846.5,0.4943508]
[1766024337572,2.809,2847.6,2846.5,0.52965405]
[1766024337778,2.809,2847.6,2846.6,7.34799013]
[1766024338087,2.809,2847.6,2846.7,0.81701949]
[1766024338286,0.18365753,2848.5,2846.7,0.81701949]
[1766024338472,2.0842,2848.3,2846.8,0.32218648]
[1766024338668,0.7248,2847.8,2846.7,0.81701949]
[1766024338862,2.809,2847.8,2846.8,1.67149109]
[1766024339175,2.809,2847.8,2846.8,1.34929452]
[1766024339370,0.18363379,2848.8,2846.9,0.32230745]
[1766024339703,0.7248,2848.2,2846.9,0.32230745]
[1766024339870,2.809,2848.0,2847.0,3.51246926]
[1766024340193,2.0842,2848.7,2847.1,0.7382634]
[1766024340364,0.7248,2848.4,2847.2,0.565]
[1766024340566,0.03530325,2849.2,2847.2,0.565]
[1766024340567,0.7248,2848.2,2847.2,0.565]
[1766024340900,2.0842,2848.4,2847.2,0.565]
[1766024341100,0.7248,2847.9,2847.1,0.7382634]
[1766024341393,0.405504,2848.4,2846.5,3.51504207]
[1766024341599,2.0842,2847.8,2846.6,0.32254121]
[1766024341801,0.86988423,2848.3,2846.5,4.08005039]
[1766024341802,2.0842,2847.4,2846.5,4.08005039]
[1766024342005,2.809,2847.3,2846.5,4.08005039]
[1766024342204,2.809,2847.3,2846.6,3.83565761]
[1766024342511,0.86988423,2848.1,2846.7,0.32268399]
[1766024342799,2.0842,2848.1,2846.6,3.95321788]
[1766024342996,2.0842,2847.9,2846.7,0.32268454]
[1766024343168,2.809,2847.7,2846.6,3.95321788]
[1766024343496,2.809,2847.7,2846.7,0.32288238]
[1766024343696,0.2809,2847.6,2846.7,0.32288238]
[1766024343919,2.809,2848.3,2846.9,0.03530325]
[1766024344202,0.001,2848.9,2847.2,0.03530325]
[1766024344505,0.7248,2848.5,2847.3,0.32288238]
[1766024344800,2.809,2848.0,2847.3,0.565]
[1766024344970,2.809,2848.0,2847.2,0.565]
[1766024345171,2.809,2848.6,2847.3,0.32275588]
[1766024345617,0.46438023,2848.7,2847.3,0.32275588]
[1766024345908,0.001,2848.9,2847.3,0.32275588]
[1766024345909,0.7248,2848.2,2847.3,0.32275588]
[1766024346070,2.809,2848.1,2847.3,1.32774244]
[1766024346270,2.809,2848.1,2847.4,0.32275588]
[1766024347295,2.809,2848.1,2847.5,0.32275588]
[1766024347508,2.809,2848.1,2847.6,0.32275588]
[1766024347706,2.809,2848.1,2847.3,0.43998656]
[1766024348010,2.809,2848.1,2847.4,0.32364711]
[1766024348167,0.001,2848.9,2847.5,0.35876563]
[1766024348489,2.54858023,2848.6,2847.6,0.32364711]
[1766024348686,2.0842,2848.6,2847.7,0.32364711]
[1766024348888,2.809,2848.6,2847.8,0.32364711]
[1766024349088,0.2809,2848.5,2847.9,0.32364711]
[1766024349268,3.0899,2848.5,2848.0,0.32364711]
[1766024349472,3.0899,2848.5,2847.4,7.0238692]
[1766024349672,3.0899,2848.5,2847.5,0.324453]
[1766024349883,2.809,2848.5,2847.6,0.324453]
[1766024350069,2.0842,2848.6,2847.7,0.324453]
[1766024350273,0.001,2848.9,2847.8,0.889453]
[1766024350504,2.81,2848.9,2847.9,0.324453]
[1766024350677,2.81,2848.9,2848.0,0.324453]
[1766024351010,0.281,2848.8,2848.1,0.324453]
[1766024351310,0.281,2848.8,2848.2,0.324453]
[1766024351606,2.8135,2849.4,2848.3,0.92456166]
[1766024351805,2.1154,2850.4,2848.4,0.324453]
[1766024352021,10.22348221,2850.8,2848.5,0.324453]
[1766024352022,2.1154,2849.9,2848.5,0.324453]
[1766024352185,0.56241719,2849.8,2848.6,0.324453]
[1766024352393,2.8135,2849.7,2848.7,0.324453]
[1766024352686,2.8135,2849.7,2848.8,0.324453]
[1766024352890,2.8135,2849.7,2848.9,0.324453]
[1766024353091,2.8135,2849.7,2848.5,7.02121307]
[1766024353092,2.8135,2849.7,2849.0,0.324453]
[1766024353294,0.33759172,2849.6,2849.1,0.324453]
[1766024353613,8.39281707,2850.8,2849.2,0.3238972]
[1766024353789,0.7457,2850.1,2849.3,0.3238972]
[1766024353985,0.405504,2850.4,2849.4,0.32383705]
[1766024354321,0.405504,2849.9,2847.9,0.46438023]
[1766024354491,2.496304,2849.5,2848.0,0.32366146]
[1766024354686,2.0908,2848.9,2847.9,3.51133139]
[1766024354913,2.8365,2848.9,2847.6,0.565]
[1766024355225,2.9428,2849.2,2848.2,3.51092143]
[1766024355520,0.71401063,2849.4,2848.1,3.51107932]
[1766024355826,2.198,2849.0,2848.1,3.51107932]
[1766024356122,2.9428,2848.9,2847.9,3.51132341]
[1766024356507,2.9428,2848.9,2847.9,7.02268265]
[1766024356708,0.7448,2849.1,2847.8,3.51143686]
[1766024356908,2.198,2849.0,2847.9,0.03530325]
[1766024357091,0.2198,2848.9,2847.9,0.79752552]
[1766024357292,2.9428,2848.9,2847.9,0.79752552]
[1766024357492,0.7448,2850.1,2848.3,0.03530325]
[1766024357824,0.46438023,2849.8,2848.4,0.564]
[1766024358019,0.7448,2850.1,2848.4,0.564]
[1766024358323,0.001,2849.2,2848.5,7.02123924]
[1766024358522,0.001,2849.2,2848.6,0.75852392]
[1766024359022,2.198,2850.6,2848.6,0.79382717]
[1766024359317,0.7448,2849.9,2848.7,0.564]
[1766024359486,2.9428,2849.8,2848.8,0.565]
[1766024359924,0.86988423,2850.3,2848.9,0.565]
[1766024360129,2.198,2849.9,2848.7,4.07535272]
[1766024360290,3.1846,2849.8,2848.7,4.48641832]
[1766024360495,0.2198,2849.8,2848.7,0.9760656]
[1766024360692,2.1987,2849.9,2848.8,0.565]
[1766024360893,0.7661,2849.6,2848.8,0.565]
[1766024361110,2.9648,2849.4,2848.3,0.03530325]
[1766024361294,2.9648,2849.4,2848.4,0.565]
[1766024361822,2.9648,2849.4,2848.3,0.03530325]
[1766024361999,2.9648,2849.2,2848.4,0.564]
[1766024362524,2.9648,2849.2,2848.4,4.07474058]
[1766024362727,2.9648,2849.2,2848.4,7.02148345]
[1766024362912,2.9648,2849.2,2848.5,0.564]
[1766024364115,2.1987,2849.2,2848.0,3.51123595]
[1766024364309,2.1987,2848.8,2847.9,0.76222227]
[1766024364531,0.7661,2848.7,2848.0,0.564]
[1766024364726,0.7661,2848.7,2848.1,0.564]
[1766024364727,2.9648,2848.7,2848.1,0.564]
[1766024366340,0.001,2849.2,2847.6,0.03530325]
[1766024366509,2.0755,2848.9,2847.8,0.46438023]
[1766024366829,2.8285,2848.5,2847.8,3.97575179]
[1766024367002,0.20755,2848.8,2847.6,3.51165973]
[1766024367208,3.51076126,2849.2,2847.7,4.07559924]
[1766024367431,0.753,2848.8,2847.7,3.51159924]
[1766024367732,0.7098,2849.1,2847.2,0.03530325]
[1766024367920,2.1637,2848.7,2847.3,4.07609255]
[1766024368229,2.0423,2848.1,2847.3,4.07609255]
[1766024368396,2.8043,2848.1,2847.0,0.002]
[1766024368598,2.8043,2848.1,2847.3,7.02419676]
[1766024368817,0.21637,2848.6,2847.3,7.58819676]
[1766024369018,3.0262,2848.5,2847.4,0.79412293]
[1766024369198,2.72558023,2848.9,2847.4,0.79412293]
[1766024369394,2.72558023,2848.9,2847.3,7.58819676]
[1766024369395,2.2612,2848.3,2847.1,0.03530325]
[1766024369596,0.46438023,2849.0,2847.2,0.564]
[1766024369795,10.52976315,2849.1,2847.2,0.564]
[1766024369796,3.0262,2848.2,2847.2,0.564]
[1766024370018,2.2612,2848.6,2847.2,4.07622202]
[1766024370295,2.239,2847.8,2847.0,0.002]
[1766024370500,2.955,2847.6,2847.0,0.002]
[1766024371735,2.955,2847.6,2847.0,0.566]
[1766024371940,0.3004,2847.7,2847.0,0.002]
[1766024372099,0.7718,2848.1,2847.0,0.03730325]
[1766024372305,0.46538023,2849.2,2847.2,0.03530325]
[1766024372306,2.955,2848.3,2847.2,0.03530325]
[1766024372499,0.46438023,2848.4,2847.2,0.03530325]
[1766024372696,0.7718,2848.1,2847.3,0.564]
[1766024372902,0.405504,2848.6,2847.0,0.03730325]
[1766024372903,2.955,2847.8,2847.1,0.564]
[1766024373110,0.2955,2847.7,2847.1,0.564]
[1766024373599,2.955,2847.4,2847.0,0.002]
[1766024373800,0.2955,2847.7,2847.0,0.002]
[1766024373997,0.7718,2848.1,2847.0,0.002]
[1766024374221,2.1832,2847.7,2846.6,0.002]
[1766024374427,0.7718,2847.2,2846.6,0.002]
[1766024374630,0.7718,2847.4,2846.6,0.002]
[1766024374840,0.7718,2847.2,2846.6,0.002]
[1766024375018,0.46438023,2848.2,2846.6,0.002]
[1766024375336,2.1832,2847.5,2846.6,0.002]
[1766024375535,2.955,2847.3,2846.6,0.002]
[1766024375713,2.1832,2847.3,2846.6,0.002]
[1766024375918,2.1832,2847.1,2846.6,0.002]
[1766024376238,2.955,2847.3,2846.5,0.002]
[1766024376438,2.1832,2847.3,2846.5,0.002]
[1766024376628,0.7718,2846.8,2846.2,1.625]
[1766024376808,2.955,2846.8,2846.2,1.625]
[1766024377008,3.51160585,2847.7,2846.2,1.625]
[1766024377243,0.7207,2847.1,2846.2,1.625]
[1766024377440,2.089,2846.6,2846.2,1.625]
[1766024377617,3.09067,2846.5,2846.2,1.625]
[1766024378117,2.8097,2846.4,2846.2,1.625]
[1766024378315,0.28097,2846.5,2845.9,0.002]
[1766024378638,2.089,2846.4,2845.9,0.002]
[1766024378840,2.8097,2846.2,2845.9,0.002]
[1766024379603,0.7207,2846.6,2845.9,0.002]
[1766024379835,2.9576,2846.2,2845.9,0.002]
[1766024380206,0.46438023,2846.9,2845.9,0.002]
[1766024380442,2.2369,2846.5,2845.9,0.002]
[1766024380650,2.978,2846.2,2845.9,0.002]
[1766024380841,0.22369,2846.4,2845.9,0.002]
[1766024381054,2.1943,2847.0,2845.9,0.002]
[1766024381225,0.7124,2846.3,2845.4,0.002]
[1766024381544,0.405504,2846.9,2845.4,0.002]
[1766024381545,2.1943,2846.9,2845.4,3.51636648]
[1766024381747,0.7124,2846.5,2845.4,0.002]
[1766024381956,0.405504,2846.8,2845.4,0.002]
[1766024382156,2.17344323,2847.1,2845.4,0.002]
[1766024382157,0.7124,2846.7,2845.4,0.002]
[1766024382357,0.7124,2846.3,2845.4,0.002]
[1766024382565,0.7124,2846.3,2845.4,0.70886806]
[1766024382746,2.9067,2846.3,2845.4,0.70886806]
[1766024383054,0.7289,2846.3,2845.4,0.002]
[1766024383254,0.7289,2845.9,2845.4,0.002]
[1766024383454,2.0944,2845.8,2845.4,0.002]
[1766024383628,2.0944,2846.7,2845.4,0.002]
[1766024383832,0.405504,2846.8,2845.4,0.002]
[1766024384031,2.2746,2846.0,2845.4,0.002]
[1766024384230,0.7589,2845.7,2845.4,0.002]
[1766024384545,0.405504,2846.4,2845.0,0.002]
[1766024384546,0.7589,2845.6,2845.0,0.002]
[1766024384725,2.2746,2845.1,2844.8,0.002]
[1766024385057,2.2746,2845.5,2844.8,0.002]
[1766024385229,7.44153281,2846.5,2844.8,0.002]
[1766024385230,0.46438023,2846.4,2844.8,0.002]
[1766024385429,2.2746,2845.6,2844.8,0.002]
[1766024385678,2.2746,2845.0,2844.8,0.002]
[1766024385849,3.0335,2844.9,2844.5,0.002]
[1766024386030,2.2746,2845.8,2844.5,0.002]
[1766024386224,3.51432085,2845.5,2844.4,0.002]
[1766024386425,0.46438023,2845.2,2844.4,0.002]
[1766024386624,0.7589,2844.7,2844.0,0.002]
[1766024386825,0.7589,2844.1,2843.4,0.002]
[1766024387024,3.0335,2843.7,2843.4,0.002]
[1766024387266,0.4153158,2844.8,2843.4,0.002]
[1766024387267,2.73898023,2844.6,2843.4,0.002]
[1766024387446,0.7589,2844.0,2843.4,0.002]
[1766024387762,2.2746,2843.7,2843.4,0.002]
[1766024388061,0.405504,2844.5,2842.9,0.564]
[1766024388223,0.7589,2844.0,2842.8,0.002]
[1766024388429,0.405504,2844.1,2842.8,0.002]
[1766024388430,3.0335,2843.7,2842.8,0.002]
[1766024389156,0.30335,2843.7,2842.8,0.002]
[1766024389362,3.0335,2843.4,2842.8,0.002]
[1766024389758,0.405504,2843.7,2842.2,0.002]
[1766024390054,2.2746,2843.1,2842.2,0.002]
[1766024390254,3.0335,2843.7,2842.2,0.002]
[1766024390829,3.0335,2843.7,2842.6,0.03530325]
[1766024391029,3.0335,2843.7,2842.8,0.002]
[1766024391644,0.86988423,2843.9,2842.8,0.002]
[1766024391925,2.2746,2843.8,2842.8,0.002]
[1766024392125,3.0335,2843.4,2842.8,0.002]
[1766024392424,2.2746,2843.4,2842.8,0.002]
[1766024392623,0.7589,2843.8,2842.8,0.002]
[1766024392830,3.0335,2843.5,2842.8,0.002]
[1766024393142,0.86988423,2843.8,2842.8,0.002]
[1766024393350,3.0335,2843.1,2842.8,0.002]
[1766024393654,0.405504,2843.6,2842.8,0.002]
[1766024393873,0.7589,2843.5,2842.8,0.002]
[1766024394036,0.7589,2843.1,2842.8,0.002]
[1766024394224,1.22328023,2843.5,2842.8,0.002]
[1766024394430,0.46438023,2843.4,2842.8,0.002]
[1766024394657,0.7589,2843.5,2842.8,0.002]
[1766024394957,2.2746,2843.7,2842.8,0.002]
[1766024395689,0.7589,2843.9,2842.8,0.002]
[1766024395827,3.0335,2843.8,2842.8,0.002]
[1766024396863,3.390304,2844.1,2842.8,0.002]
[1766024397081,0.46438023,2844.0,2842.9,0.03530325]
[1766024397379,2.2982,2844.8,2843.1,0.03530325]
[1766024397672,0.7025,2844.9,2843.1,0.03530325]
[1766024397875,3.0625,2844.6,2843.2,0.03530325]
[1766024398039,0.17725239,2845.1,2843.2,0.60030325]
[1766024398040,0.7509,2844.5,2843.2,0.60030325]
[1766024398239,3.0625,2844.4,2843.3,0.565]
[1766024398437,0.405504,2844.6,2843.3,1.02938023]
[1766024398637,0.86988423,2844.8,2843.3,1.02938023]
[1766024398638,3.0625,2844.7,2843.3,0.46438023]
[1766024398993,0.001,2844.0,2842.2,0.002]
[1766024399168,3.0625,2843.6,2842.7,0.565]
[1766024399354,3.0625,2843.6,2842.8,3.51959089]
[1766024399742,0.001,2844.0,2843.1,3.51718875]
[1766024399974,2.3116,2843.9,2843.2,0.46438023]
[1766024400180,0.001,2844.0,2842.8,0.002]
[1766024400464,3.0625,2843.6,2842.8,0.002]
[1766024401279,3.0923,2843.9,2842.8,0.002]
[1766024401478,0.001,2844.0,2842.9,0.03530325]
[1766024401784,0.39323842,2844.6,2843.0,0.405504]
[1766024401785,2.3135,2844.6,2843.0,0.405504]
[1766024402078,0.7788,2844.5,2843.1,0.565]
[1766024402288,0.7698,2844.4,2843.2,0.565]
[1766024402578,2.41893,2844.6,2843.3,3.5523433]
[1766024402742,0.7698,2844.4,2843.3,3.5523433]
[1766024402942,0.7698,2844.4,2843.3,7.06938335]
[1766024403173,2.1097,2844.5,2843.3,7.06938335]
[1766024403549,0.7525,2844.7,2843.5,0.03530325]
[1766024403747,0.46438023,2845.0,2843.5,0.74224159]
[1766024403970,0.46438023,2844.8,2843.5,0.74224159]
[1766024404174,0.46438023,2844.8,2843.7,0.03530325]
[1766024404358,2.9707,2844.9,2843.7,0.03530325]
[1766024404572,2.9707,2844.9,2843.8,3.51642168]
[1766024404778,3.26777,2844.9,2843.9,0.70682656]
[1766024404989,2.9707,2844.9,2843.9,0.74212981]
[1766024405753,2.9707,2844.9,2843.9,0.70682656]
[1766024405957,2.9707,2844.9,2844.0,0.03530325]
[1766024405958,0.001,2844.9,2844.0,0.03530325]
[1766024406184,0.001,2845.2,2844.0,0.03530325]
[1766024406685,0.001,2845.2,2844.1,4.08105077]
[1766024406888,0.001,2845.2,2844.1,7.59710154]
[1766024407088,0.46438023,2846.0,2844.1,11.11315231]
[1766024407287,1.21688023,2845.8,2844.4,0.03530325]
[1766024407587,2.9707,2845.7,2844.4,0.07046004]
[1766024407791,2.9707,2845.7,2844.4,0.03530325]
[1766024408088,0.46438023,2845.6,2844.4,0.03530325]
[1766024408592,0.7525,2845.5,2844.4,0.565]
[1766024408783,0.405504,2845.8,2844.3,4.08076934]
[1766024408784,0.7525,2845.2,2844.3,4.08076934]
[1766024409316,0.46438023,2845.8,2844.4,0.03530325]
[1766024409594,0.7261,2845.2,2844.3,1.02938023]
[1766024409797,2.9329,2845.2,2844.3,4.54513342]
[1766024410094,2.9329,2845.2,2844.4,4.88675501]
[1766024410393,0.86988423,2845.8,2843.5,3.51676797]
[1766024410394,0.405504,2845.6,2843.5,3.51676797]
[1766024410721,2.9001,2844.7,2843.8,0.46438023]
[1766024411388,3.0892,2845.3,2844.1,0.03530325]
[1766024411601,3.0892,2845.7,2844.5,0.03530325]
[1766024411800,0.30892,2845.6,2844.5,0.03530325]
[1766024411977,3.0892,2845.6,2844.5,0.03530325]
[1766024412357,3.0892,2845.9,2844.5,0.03530325]
[1766024412573,3.55358023,2845.8,2844.7,0.03530325]
[1766024412773,3.55358023,2845.8,2844.8,4.0801856]
[1766024412998,3.55358023,2845.8,2844.8,0.565]
[1766024413296,0.001,2845.6,2844.8,0.565]
[1766024413595,0.001,2845.6,2844.8,0.60030325]
[1766024414160,0.001,2845.6,2844.8,0.03530325]
[1766024414355,0.001,2845.6,2844.9,0.565]
[1766024414892,0.001,2845.6,2845.0,3.51493848]
[1766024415060,1.24518023,2845.9,2845.0,3.51493848]
[1766024415261,1.60063825,2845.9,2845.0,3.51493848]
[1766024415560,0.35545802,2845.9,2845.0,3.55024173]
[1766024415790,0.46438023,2846.0,2845.0,7.06518021]
[1766024416192,0.779,2846.1,2845.0,7.06518021]
[1766024416487,0.001,2846.1,2845.0,7.06518021]
[1766024416676,0.001,2846.1,2845.3,0.03530325]
[1766024416882,0.001,2846.1,2845.4,0.565]
[1766024419203,0.001,2846.1,2845.4,4.07942926]
[1766024419511,0.001,2846.1,2845.4,4.07935252]
[1766024419695,0.001,2846.1,2845.4,0.565]
[1766024419862,0.001,2846.1,2845.4,0.60030325]
[1766024420066,0.001,2846.1,2845.3,3.51450247]
[1766024420265,2.2687,2846.0,2844.8,0.03530325]
[1766024420500,3.0426,2845.8,2845.1,3.51480504]
[1766024421079,3.0426,2845.8,2844.9,0.565]
[1766024421280,0.001,2846.0,2844.9,0.564]
[1766024421489,3.0426,2845.8,2844.9,0.564]
[1766024421695,0.30426,2845.7,2844.9,0.564]
[1766024422005,0.30426,2845.7,2844.9,1.02838023]
[1766024422708,0.30426,2845.7,2844.9,4.07903093]
[1766024423086,0.30426,2845.7,2844.9,0.564]
[1766024423293,0.30426,2845.7,2845.0,0.564]
[1766024423501,0.334686,2845.6,2845.0,0.564]
[1766024423898,0.001,2846.0,2845.2,0.03530325]
[1766024424099,0.001,2846.1,2845.0,1.06368348]
[1766024424293,3.0436,2846.1,2845.0,1.06368348]
[1766024424620,3.0426,2846.5,2845.1,0.03514814]
[1766024424824,3.0426,2846.5,2845.0,1.06368348]
[1766024425024,3.0426,2846.5,2845.7,0.03530325]
[1766024425517,3.0426,2846.5,2845.6,0.564]
[1766024426026,0.001,2846.8,2845.6,0.564]
[1766024426027,3.0436,2846.3,2845.6,0.564]
[1766024426224,0.001,2846.3,2845.7,3.54934307]
[1766024426404,0.001,2846.3,2845.7,0.03530325]
[1766024426801,3.0426,2846.6,2845.7,3.5493641]
[1766024427104,3.0426,2846.6,2845.8,0.41133641]
[1766024427303,0.001,2846.8,2845.8,7.43918783]
[1766024427616,0.46538023,2846.8,2846.0,0.03530325]
[1766024427812,0.46538023,2846.8,2846.1,0.564]
[1766024428214,0.001,2846.8,2846.1,0.564]
[1766024428722,0.001,2846.8,2846.2,0.03530325]
[1766024428924,0.001,2846.8,2846.1,0.564]
[1766024430017,0.001,2846.8,2846.1,4.07755758]
[1766024430216,0.001,2846.8,2846.1,4.52415105]
[1766024430419,0.001,2846.8,2846.1,1.01059347]
[1766024430617,0.001,2846.8,2846.1,4.524121]
[1766024430821,0.001,2846.8,2846.1,8.00239773]
[1766024431135,0.001,2846.9,2846.3,0.03530325]
[1766024431347,0.46538023,2847.2,2846.3,7.06193216]
[1766024431645,0.46538023,2847.2,2846.4,0.03530325]
[1766024431939,0.46538023,2847.2,2846.5,0.564]
[1766024432446,0.18468063,2847.9,2846.5,0.564]
[1766024432606,0.7739,2847.7,2846.5,0.564]
[1766024432802,2.2687,2847.3,2846.5,0.564]
[1766024433035,3.0426,2847.2,2846.5,0.564]
[1766024433214,3.34686,2847.6,2846.5,0.564]
[1766024433418,3.34686,2847.6,2846.5,4.07699837]
[1766024433946,0.30426,2847.6,2846.5,0.564]
[1766024434150,0.405504,2847.8,2846.5,0.564]
[1766024434353,0.7739,2847.8,2846.7,0.03530325]
[1766024434637,3.0426,2847.8,2846.7,0.03530325]
[1766024434945,2.2687,2847.8,2846.6,0.46438023]
[1766024435133,2.2687,2847.8,2846.7,0.564]
[1766024435335,3.0426,2847.5,2846.7,0.564]
[1766024435510,0.22697,2847.7,2846.5,1.02838023]
[1766024435710,2.2687,2847.3,2846.6,0.46438023]
[1766024436015,0.7739,2847.5,2846.3,4.07730588]
[1766024436338,3.0426,2847.1,2846.3,1.02838023]
[1766024436844,0.405504,2847.4,2846.1,1.02838023]
[1766024437152,0.405504,2847.4,2845.7,0.03530325]
[1766024437441,0.405504,2847.1,2845.9,0.46438023]
[1766024437745,2.2687,2846.5,2845.6,3.51414674]
[1766024438043,3.26947,2846.4,2845.6,0.564]
[1766024438243,3.0426,2846.4,2845.6,4.5425661]
[1766024438410,3.0426,2846.4,2845.6,0.46438023]
[1766024438736,3.0426,2846.4,2845.6,3.9785102]
[1766024439040,3.0426,2846.5,2845.7,3.51406541]
[1766024439335,0.7739,2847.5,2845.7,0.564]
[1766024439532,0.405504,2847.3,2845.7,4.07807386]
[1766024439727,2.2687,2847.1,2845.7,4.07807386]
[1766024439928,2.2687,2846.7,2845.8,0.41133771]
[1766024440125,2.2687,2846.7,2845.8,0.44664096]
[1766024440319,3.0426,2846.7,2845.8,0.41133771]
[1766024440937,0.2674204,2847.0,2845.8,0.44664096]
[1766024440938,0.73180063,2847.0,2845.8,0.44664096]
[1766024441135,0.46438023,2847.0,2846.2,0.03530325]
[1766024441438,2.2198,2847.2,2846.2,0.59930325]
[1766024441610,3.44718023,2847.1,2846.2,0.59930325]
[1766024442109,0.763,2847.3,2846.2,0.59930325]
[1766024442307,3.32751802,2847.2,2846.2,0.564]
[1766024442611,0.46438023,2847.0,2846.2,0.564]
[1766024443621,0.46438023,2847.1,2846.2,0.564]
[1766024443827,4.16438023,2847.3,2845.8,0.44664096]
[1766024444148,0.763,2846.7,2845.4,0.002]
[1766024444317,0.763,2846.0,2845.4,0.002]
[1766024444638,2.9828,2845.7,2845.4,0.002]
[1766024444839,2.2198,2846.0,2845.4,0.002]
[1766024445043,3.2453304,2846.0,2845.4,0.002]
[1766024445443,0.763,2845.8,2845.4,0.002]
[1766024445742,2.9828,2845.8,2845.4,0.002]
[1766024445975,0.46438023,2846.8,2845.4,0.002]
[1766024446144,2.2198,2846.1,2845.4,0.002]
[1766024446344,0.26841802,2846.1,2845.4,0.002]
[1766024446577,0.405504,2846.5,2845.4,0.002]
[1766024446877,0.763,2845.4,2844.2,0.002]
[1766024447048,2.2198,2845.1,2844.2,4.08085664]
[1766024447247,0.46438023,2845.8,2844.2,4.08085664]
[1766024447248,0.763,2845.0,2844.2,0.002]
[1766024447579,2.9828,2844.9,2844.2,0.002]
[1766024447951,2.68418023,2845.1,2844.2,0.002]
[1766024448253,2.9828,2844.4,2844.2,0.002]
[1766024448464,2.2198,2844.7,2844.2,0.002]
[1766024448663,0.46438023,2845.3,2843.6,0.002]
[1766024449166,0.405504,2845.2,2843.6,0.002]
[1766024449348,0.405504,2845.0,2843.6,0.002]
[1766024449555,0.405504,2845.0,2843.7,0.75995854]
[1766024449762,2.9828,2844.6,2843.7,0.75995854]
[1766024450088,2.2198,2844.8,2843.7,0.75995854]